[Event "Early-Titled-Tuesday-Blitz-October-10-2023"]
[Site "Chess.com"]
[Date "2023.10.10"]
[Round "9"]
[White "krzyzan94"]
[Black "Mikhail_Golubev"]
[Result "1-0"]
[WhiteElo "2774"]
[BlackElo "2610"]
[TimeControl "180+1"]
[EndTime "9:44:52 PDT"]
[Termination "krzyzan94 won on time"]

1. d4 {[%clk 0:02:57.2]} 1... Nf6 {[%clk 0:02:59.1]} 2. c4 {[%clk 0:02:54.9]}
2... g6 {[%clk 0:02:59.5]} 3. Nc3 {[%clk 0:02:53.6]} 3... Bg7 {[%clk 0:02:59.9]}
4. g3 {[%clk 0:02:50.3]} 4... O-O {[%clk 0:02:59.3]} 5. Bg2 {[%clk 0:02:50.5]}
5... d6 {[%clk 0:02:59.4]} 6. Nf3 {[%clk 0:02:50.7]} 6... Nbd7 {[%clk
0:02:57.9]} 7. O-O {[%clk 0:02:50]} 7... e5 {[%clk 0:02:58.5]} 8. Qc2 {[%clk
0:02:48.2]} 8... exd4 {[%clk 0:02:55.2]} 9. Nxd4 {[%clk 0:02:47.3]} 9... Nb6
{[%clk 0:02:54.8]} 10. b3 {[%clk 0:02:42.7]} 10... c5 {[%clk 0:02:52]} 11. Nf3
{[%clk 0:02:01.1]} 11... Bf5 {[%clk 0:02:46]} 12. Qd2 {[%clk 0:02:01.2]} 12...
d5 {[%clk 0:02:28.1]} 13. cxd5 {[%clk 0:01:25.1]} 13... Nfxd5 {[%clk 0:02:27.4]}
14. Nxd5 {[%clk 0:01:20.2]} 14... Qxd5 {[%clk 0:02:23.1]} 15. Nh4 {[%clk
0:01:05.4]} 15... Qxd2 {[%clk 0:02:14.9]} 16. Bxd2 {[%clk 0:01:06.3]} 16... Bxa1
{[%clk 0:02:14.2]} 17. Nxf5 {[%clk 0:01:06.3]} 17... Bf6 {[%clk 0:01:29.8]} 18.
Nh6+ {[%clk 0:01:02.1]} 18... Kg7 {[%clk 0:01:27.4]} 19. Ng4 {[%clk 0:00:53.9]}
19... Rad8 {[%clk 0:01:25.3]} 20. Ba5 {[%clk 0:00:51.1]} 20... Be7 {[%clk
0:01:06.9]} 21. Bxb7 {[%clk 0:00:49]} 21... h5 {[%clk 0:00:53.7]} 22. Ne5 {[%clk
0:00:46.8]} 22... Bf6 {[%clk 0:00:52.4]} 23. Nd3 {[%clk 0:00:44.5]} 23... c4
{[%clk 0:00:37.2]} 24. bxc4 {[%clk 0:00:43.2]} 24... Rb8 {[%clk 0:00:37.2]} 25.
Bxb6 {[%clk 0:00:38]} 25... axb6 {[%clk 0:00:35.4]} 26. Bd5 {[%clk 0:00:34.6]}
26... Rfd8 {[%clk 0:00:32.7]} 27. a4 {[%clk 0:00:31.8]} 27... Rd7 {[%clk
0:00:29.7]} 28. Rb1 {[%clk 0:00:31.3]} 28... Ra7 {[%clk 0:00:29.2]} 29. c5
{[%clk 0:00:25.4]} 29... Rxa4 {[%clk 0:00:27.1]} 30. cxb6 {[%clk 0:00:24.9]}
30... Ra1 {[%clk 0:00:24.8]} 31. Rxa1 {[%clk 0:00:24.6]} 31... Bxa1 {[%clk
0:00:25.7]} 32. b7 {[%clk 0:00:25.4]} 32... Bd4 {[%clk 0:00:25.4]} 33. Nb4
{[%clk 0:00:24.9]} 33... Ba7 {[%clk 0:00:18]} 34. Na6 {[%clk 0:00:17.8]} 34...
Rd8 {[%clk 0:00:16.6]} 35. e4 {[%clk 0:00:17.7]} 35... f5 {[%clk 0:00:15.1]} 36.
Kg2 {[%clk 0:00:16.3]} 36... fxe4 {[%clk 0:00:14.6]} 37. Bxe4 {[%clk 0:00:17.2]}
37... Rd2 {[%clk 0:00:14.1]} 38. b8=Q {[%clk 0:00:11.9]} 38... Rxf2+ {[%clk
0:00:14]} 39. Kg1 {[%clk 0:00:07.1]} 39... Bxb8 {[%clk 0:00:14.9]} 40. Kxf2
{[%clk 0:00:07.3]} 40... Bd6 {[%clk 0:00:15.6]} 41. Kf3 {[%clk 0:00:06]} 41...
g5 {[%clk 0:00:15.7]} 42. h3 {[%clk 0:00:06.4]} 42... Kf6 {[%clk 0:00:14.5]} 43.
g4 {[%clk 0:00:05.2]} 43... h4 {[%clk 0:00:12.9]} 44. Ke3 {[%clk 0:00:04.8]}
44... Ke5 {[%clk 0:00:12.9]} 45. Bf5 {[%clk 0:00:04.7]} 45... Ba3 {[%clk
0:00:08]} 46. Nb8 {[%clk 0:00:04.3]} 46... Bc5+ {[%clk 0:00:08.1]} 47. Kf3
{[%clk 0:00:04.4]} 47... Ba3 {[%clk 0:00:08]} 48. Nd7+ {[%clk 0:00:04.9]} 48...
Kd6 {[%clk 0:00:07.7]} 49. Nb6 {[%clk 0:00:04.9]} 49... Bc1 {[%clk 0:00:07.1]}
50. Nc4+ {[%clk 0:00:05]} 50... Ke7 {[%clk 0:00:07.1]} 51. Ne5 {[%clk
0:00:05.1]} 51... Kf6 {[%clk 0:00:06.9]} 52. Ke4 {[%clk 0:00:06]} 52... Bd2
{[%clk 0:00:06.1]} 53. Kd5 {[%clk 0:00:06.2]} 53... Bc1 {[%clk 0:00:06]} 54. Nf3
{[%clk 0:00:05.5]} 54... Bb2 {[%clk 0:00:05.6]} 55. Kd6 {[%clk 0:00:05.4]} 55...
Ba3+ {[%clk 0:00:05.3]} 56. Kd5 {[%clk 0:00:05.7]} 56... Bc1 {[%clk 0:00:06.2]}
57. Ng1 {[%clk 0:00:05.1]} 57... Kg7 {[%clk 0:00:05.4]} 58. Ne2 {[%clk 0:00:06]}
58... Kf6 {[%clk 0:00:05.1]} 59. Nxc1 {[%clk 0:00:05.7]} 1-0

[Event "Early-Titled-Tuesday-Blitz-October-10-2023"]
[Site "Chess.com"]
[Date "2023.10.10"]
[Round "9"]
[White "Rodalquilar"]
[Black "Amirreza_p"]
[Result "0-1"]
[WhiteElo "2739"]
[BlackElo "2612"]
[TimeControl "180+1"]
[EndTime "9:44:52 PDT"]
[Termination "Amirreza_p won on time"]

1. d4 {[%clk 0:03:00.9]} 1... d5 {[%clk 0:02:59.8]} 2. Nf3 {[%clk 0:03:01.3]}
2... Nf6 {[%clk 0:02:58.2]} 3. Bf4 {[%clk 0:03:01.4]} 3... c5 {[%clk 0:02:55.2]}
4. e3 {[%clk 0:03:01.9]} 4... Bg4 {[%clk 0:02:51.9]} 5. Nbd2 {[%clk 0:02:42]}
5... e6 {[%clk 0:02:50.6]} 6. c3 {[%clk 0:02:40.4]} 6... Nc6 {[%clk 0:02:48.9]}
7. Qb3 {[%clk 0:02:39.6]} 7... Qb6 {[%clk 0:02:48.9]} 8. Qxb6 {[%clk 0:02:38.6]}
8... axb6 {[%clk 0:02:49.8]} 9. Bb5 {[%clk 0:02:38.9]} 9... Nd7 {[%clk
0:02:47.1]} 10. O-O {[%clk 0:02:37]} 10... Be7 {[%clk 0:02:44.8]} 11. h3 {[%clk
0:02:36.9]} 11... Bf5 {[%clk 0:02:43.2]} 12. Rfe1 {[%clk 0:02:35.8]} 12... O-O
{[%clk 0:02:41.4]} 13. a3 {[%clk 0:02:22.2]} 13... Rfc8 {[%clk 0:02:33.3]} 14.
Rad1 {[%clk 0:02:20.3]} 14... Nf6 {[%clk 0:02:27.5]} 15. g4 {[%clk 0:02:14.5]}
15... Bg6 {[%clk 0:02:25.2]} 16. Kg2 {[%clk 0:02:04.1]} 16... Ne4 {[%clk
0:02:07]} 17. Nxe4 {[%clk 0:01:54.6]} 17... Bxe4 {[%clk 0:02:07.9]} 18. Kg3
{[%clk 0:01:51.5]} 18... f6 {[%clk 0:01:59.3]} 19. h4 {[%clk 0:01:38.2]} 19...
g6 {[%clk 0:01:48]} 20. Nd2 {[%clk 0:01:28.9]} 20... g5 {[%clk 0:01:46]} 21.
hxg5 {[%clk 0:01:23.5]} 21... fxg5 {[%clk 0:01:46.9]} 22. Be5 {[%clk 0:01:15.2]}
22... Bg6 {[%clk 0:01:44.7]} 23. Bxc6 {[%clk 0:01:09.3]} 23... bxc6 {[%clk
0:01:43.4]} 24. f4 {[%clk 0:00:58.3]} 24... cxd4 {[%clk 0:01:39.2]} 25. exd4
{[%clk 0:00:55.5]} 25... c5 {[%clk 0:01:38]} 26. Nf3 {[%clk 0:00:54.9]} 26...
Rf8 {[%clk 0:01:04.1]} 27. Nxg5 {[%clk 0:00:44.3]} 27... Bxg5 {[%clk 0:01:03]}
28. fxg5 {[%clk 0:00:45.2]} 28... Be4 {[%clk 0:00:59.5]} 29. Rf1 {[%clk
0:00:44.9]} 29... Rxf1 {[%clk 0:00:57.6]} 30. Rxf1 {[%clk 0:00:45]} 30... c4
{[%clk 0:00:56.6]} 31. Rf6 {[%clk 0:00:38.4]} 31... Re8 {[%clk 0:00:57]} 32. Rh6
{[%clk 0:00:38.1]} 32... Bg6 {[%clk 0:00:53.8]} 33. Kf4 {[%clk 0:00:34.6]} 33...
Rf8+ {[%clk 0:00:54.1]} 34. Bf6 {[%clk 0:00:35.1]} 34... Kf7 {[%clk 0:00:52.6]}
35. Ke5 {[%clk 0:00:33.9]} 35... Ra8 {[%clk 0:00:51.3]} 36. Rh2 {[%clk
0:00:33.1]} 36... b5 {[%clk 0:00:45]} 37. Rf2 {[%clk 0:00:33.2]} 37... Ra6
{[%clk 0:00:28.3]} 38. Bd8+ {[%clk 0:00:30]} 38... Ke8 {[%clk 0:00:28.5]} 39.
Bf6 {[%clk 0:00:12.1]} 39... Kd7 {[%clk 0:00:27.8]} 40. Bg7 {[%clk 0:00:09.7]}
40... Ra8 {[%clk 0:00:27.5]} 41. Bf8 {[%clk 0:00:09.1]} 41... Re8 {[%clk
0:00:26.1]} 42. Bc5 {[%clk 0:00:09.3]} 42... Rc8 {[%clk 0:00:22.8]} 43. Rf6
{[%clk 0:00:09.2]} 43... Re8 {[%clk 0:00:21.5]} 44. Bb4 {[%clk 0:00:09.7]} 44...
Kc6 {[%clk 0:00:19.6]} 45. Rxg6 {[%clk 0:00:07.2]} 45... hxg6 {[%clk 0:00:18.6]}
46. Kf6 {[%clk 0:00:08.1]} 46... Kd7 {[%clk 0:00:17]} 47. Kxg6 {[%clk
0:00:07.4]} 47... e5 {[%clk 0:00:17.6]} 48. dxe5 {[%clk 0:00:08]} 48... Rxe5
{[%clk 0:00:18]} 49. Kf6 {[%clk 0:00:08.7]} 49... Re6+ {[%clk 0:00:16.8]} 50.
Kf7 {[%clk 0:00:08.3]} 50... Re4 {[%clk 0:00:16.1]} 51. g6 {[%clk 0:00:08.3]}
51... Rf4+ {[%clk 0:00:16.6]} 52. Kg8 {[%clk 0:00:06.8]} 52... Rxg4 {[%clk
0:00:16.4]} 53. g7 {[%clk 0:00:07.4]} 53... Ke6 {[%clk 0:00:16.7]} 54. Kf8
{[%clk 0:00:05.1]} 54... Rf4+ {[%clk 0:00:17.2]} 55. Ke8 {[%clk 0:00:04.7]}
55... Rg4 {[%clk 0:00:17.4]} 56. Bf8 {[%clk 0:00:05]} 56... Rg2 {[%clk 0:00:17]}
57. Kd8 {[%clk 0:00:04.3]} 57... Kf7 {[%clk 0:00:17.2]} 58. Kd7 {[%clk
0:00:04.1]} 58... Rxb2 {[%clk 0:00:17.4]} 59. Kd6 {[%clk 0:00:04.7]} 59... d4
{[%clk 0:00:16.7]} 60. cxd4 {[%clk 0:00:01.1]} 60... c3 {[%clk 0:00:16.4]} 0-1

[Event "Early-Titled-Tuesday-Blitz-October-10-2023"]
[Site "Chess.com"]
[Date "2023.10.10"]
[Round "9"]
[White "GeorgiosSouleidis"]
[Black "masterofpuppets2"]
[Result "1-0"]
[WhiteElo "2642"]
[BlackElo "2508"]
[TimeControl "180+1"]
[EndTime "9:44:53 PDT"]
[Termination "GeorgiosSouleidis won by checkmate"]

1. e4 {[%clk 0:03:00.9]} 1... c5 {[%clk 0:02:59.4]} 2. Nf3 {[%clk 0:03:01.3]}
2... Nc6 {[%clk 0:02:59.4]} 3. Bc4 {[%clk 0:03:01.9]} 3... e6 {[%clk 0:02:56.9]}
4. O-O {[%clk 0:03:01.9]} 4... d5 {[%clk 0:02:52.4]} 5. Bb5 {[%clk 0:03:01.6]}
5... Bd6 {[%clk 0:02:52.9]} 6. Bxc6+ {[%clk 0:02:54.7]} 6... bxc6 {[%clk
0:02:52.9]} 7. e5 {[%clk 0:02:55.6]} 7... Bc7 {[%clk 0:02:53.3]} 8. d3 {[%clk
0:02:55.9]} 8... f6 {[%clk 0:02:49.8]} 9. Qe2 {[%clk 0:02:47.7]} 9... Ne7 {[%clk
0:02:40.7]} 10. Bf4 {[%clk 0:02:14]} 10... O-O {[%clk 0:02:33.8]} 11. Nbd2
{[%clk 0:01:58]} 11... Ng6 {[%clk 0:02:23.1]} 12. Bg3 {[%clk 0:01:57.3]} 12...
fxe5 {[%clk 0:02:18.9]} 13. Nxe5 {[%clk 0:01:56.1]} 13... Nf4 {[%clk 0:02:04.2]}
14. Qe3 {[%clk 0:01:46.3]} 14... Qg5 {[%clk 0:01:45.5]} 15. Ndf3 {[%clk
0:01:38.5]} 15... Qh6 {[%clk 0:01:31.5]} 16. Rfe1 {[%clk 0:01:09.6]} 16... Bd6
{[%clk 0:01:13.9]} 17. Rad1 {[%clk 0:01:04.5]} 17... Rb8 {[%clk 0:01:01]} 18. b3
{[%clk 0:01:03.9]} 18... Rb6 {[%clk 0:01:01]} 19. c4 {[%clk 0:01:03.5]} 19... a5
{[%clk 0:00:44.7]} 20. h3 {[%clk 0:00:48.3]} 20... g5 {[%clk 0:00:43.9]} 21. Ng4
{[%clk 0:00:35.6]} 21... Qg7 {[%clk 0:00:43.6]} 22. Bxf4 {[%clk 0:00:28.3]}
22... Rxf4 {[%clk 0:00:35.4]} 23. Nge5 {[%clk 0:00:19]} 23... h6 {[%clk
0:00:23.1]} 24. g3 {[%clk 0:00:19.3]} 24... Rf5 {[%clk 0:00:23]} 25. Kg2 {[%clk
0:00:19.1]} 25... Rf8 {[%clk 0:00:17.4]} 26. Re2 {[%clk 0:00:18.9]} 26... Qf6
{[%clk 0:00:16.7]} 27. Rde1 {[%clk 0:00:18.5]} 27... Qg7 {[%clk 0:00:17.1]} 28.
Qd2 {[%clk 0:00:18.1]} 28... Ra6 {[%clk 0:00:16.9]} 29. Qc2 {[%clk 0:00:17.7]}
29... Kh8 {[%clk 0:00:14.7]} 30. Qd2 {[%clk 0:00:17.5]} 30... Kg8 {[%clk
0:00:14.8]} 31. Ng4 {[%clk 0:00:15.2]} 31... Bd7 {[%clk 0:00:12.5]} 32. Nge5
{[%clk 0:00:15.1]} 32... Be8 {[%clk 0:00:12.9]} 33. Qe3 {[%clk 0:00:13.6]} 33...
Ra7 {[%clk 0:00:11.8]} 34. Rh1 {[%clk 0:00:12.8]} 34... Re7 {[%clk 0:00:10.5]}
35. Ree1 {[%clk 0:00:12.5]} 35... Kh8 {[%clk 0:00:06.2]} 36. Qe2 {[%clk
0:00:12.8]} 36... Kg8 {[%clk 0:00:06.3]} 37. Nd2 {[%clk 0:00:12.1]} 37... Qh7
{[%clk 0:00:05.9]} 38. h4 {[%clk 0:00:11.6]} 38... Qf5 {[%clk 0:00:04.3]} 39.
hxg5 {[%clk 0:00:10]} 39... hxg5 {[%clk 0:00:01.9]} 40. Rh6 {[%clk 0:00:05.3]}
40... Rg7 {[%clk 0:00:02.8]} 41. Ng4 {[%clk 0:00:03.7]} 41... Bg6 {[%clk
0:00:02.3]} 42. Reh1 {[%clk 0:00:03.5]} 42... Kf7 {[%clk 0:00:02.6]} 43. Nf3
{[%clk 0:00:02.1]} 43... Qxg4 {[%clk 0:00:02.3]} 44. Ne5+ {[%clk 0:00:02.5]}
44... Bxe5 {[%clk 0:00:02.5]} 45. Qxg4 {[%clk 0:00:03.1]} 45... Bf5 {[%clk
0:00:03.1]} 46. Qh5+ {[%clk 0:00:03]} 46... Ke7 {[%clk 0:00:03.8]} 47. Qe2
{[%clk 0:00:02.1]} 47... Rff7 {[%clk 0:00:04.7]} 48. Rh8 {[%clk 0:00:02.1]}
48... Bd6 {[%clk 0:00:04.6]} 49. Ra8 {[%clk 0:00:02.3]} 49... Kf6 {[%clk
0:00:04.6]} 50. Ra7 {[%clk 0:00:02.8]} 50... Kg6 {[%clk 0:00:04.9]} 51. Rxf7
{[%clk 0:00:02.6]} 51... Rxf7 {[%clk 0:00:05.3]} 52. Qh5+ {[%clk 0:00:03.5]}
52... Kf6 {[%clk 0:00:05.4]} 53. Qh8+ {[%clk 0:00:03.8]} 53... Ke7 {[%clk
0:00:04.9]} 54. Qa8 {[%clk 0:00:04.7]} 54... Kf6 {[%clk 0:00:05]} 55. Qxc6
{[%clk 0:00:05]} 55... Ke5 {[%clk 0:00:05.2]} 56. cxd5 {[%clk 0:00:04.9]} 56...
exd5 {[%clk 0:00:05.7]} 57. Re1+ {[%clk 0:00:05.6]} 57... Kd4 {[%clk 0:00:05.8]}
58. Qxd6 {[%clk 0:00:05.7]} 58... Rd7 {[%clk 0:00:06.1]} 59. Qf6+ {[%clk
0:00:05.3]} 59... Kxd3 {[%clk 0:00:07]} 60. Qxf5+ {[%clk 0:00:05.8]} 60... Kc3
{[%clk 0:00:07.3]} 61. Qxd7 {[%clk 0:00:06.4]} 61... Kb4 {[%clk 0:00:08.2]} 62.
Qxd5 {[%clk 0:00:06.7]} 62... Ka3 {[%clk 0:00:09.1]} 63. Qc4 {[%clk 0:00:07.3]}
63... Kb2 {[%clk 0:00:10]} 64. Re2+ {[%clk 0:00:07.6]} 64... Ka3 {[%clk
0:00:10.9]} 65. Qa4# {[%clk 0:00:07.7]} 1-0

[Event "Early-Titled-Tuesday-Blitz-October-10-2023"]
[Site "Chess.com"]
[Date "2023.10.10"]
[Round "9"]
[White "motivated_bishop"]
[Black "Iskusnyh"]
[Result "1-0"]
[WhiteElo "2502"]
[BlackElo "2587"]
[TimeControl "180+1"]
[EndTime "9:44:57 PDT"]
[Termination "motivated_bishop won on time"]

1. d4 {[%clk 0:02:47.5]} 1... d5 {[%clk 0:02:54.9]} 2. c4 {[%clk 0:02:47.6]}
2... c6 {[%clk 0:02:54.2]} 3. cxd5 {[%clk 0:02:46.9]} 3... cxd5 {[%clk
0:02:53.6]} 4. Bf4 {[%clk 0:02:47]} 4... Nf6 {[%clk 0:02:53]} 5. Nc3 {[%clk
0:02:46.8]} 5... Nc6 {[%clk 0:02:52.3]} 6. e3 {[%clk 0:02:47.3]} 6... a6 {[%clk
0:02:52.5]} 7. Be2 {[%clk 0:02:46.4]} 7... Bf5 {[%clk 0:02:49.2]} 8. Qb3 {[%clk
0:02:43.2]} 8... Na5 {[%clk 0:02:47.7]} 9. Qa4+ {[%clk 0:02:41.5]} 9... Bd7
{[%clk 0:02:46.8]} 10. Qc2 {[%clk 0:02:40.7]} 10... Rc8 {[%clk 0:02:39.8]} 11.
Nf3 {[%clk 0:02:37.8]} 11... b5 {[%clk 0:02:39.2]} 12. a3 {[%clk 0:02:37.1]}
12... e6 {[%clk 0:02:38.9]} 13. O-O {[%clk 0:02:35]} 13... Be7 {[%clk
0:02:38.6]} 14. h3 {[%clk 0:02:34.2]} 14... O-O {[%clk 0:02:38.2]} 15. Rfc1
{[%clk 0:02:34.3]} 15... Qb6 {[%clk 0:02:34.8]} 16. Ne5 {[%clk 0:02:33]} 16...
Qb7 {[%clk 0:02:25.8]} 17. Qd1 {[%clk 0:02:21.4]} 17... Rfd8 {[%clk 0:02:22.2]}
18. Nd3 {[%clk 0:02:01.5]} 18... Nc4 {[%clk 0:02:12.3]} 19. Nb1 {[%clk
0:01:22.1]} 19... Be8 {[%clk 0:01:53.3]} 20. b3 {[%clk 0:01:21.1]} 20... Na5
{[%clk 0:01:43.4]} 21. Nc5 {[%clk 0:01:19.3]} 21... Bxc5 {[%clk 0:01:39.7]} 22.
dxc5 {[%clk 0:01:17.5]} 22... Ne4 {[%clk 0:01:33.4]} 23. b4 {[%clk 0:01:13.5]}
23... Nc6 {[%clk 0:01:32.2]} 24. f3 {[%clk 0:01:11.6]} 24... Nf6 {[%clk
0:01:26.4]} 25. Bd6 {[%clk 0:01:10.2]} 25... Bd7 {[%clk 0:01:13.5]} 26. Nc3
{[%clk 0:01:08.4]} 26... Ne8 {[%clk 0:01:12.8]} 27. Bg3 {[%clk 0:01:07.2]} 27...
h6 {[%clk 0:00:57.9]} 28. Qb3 {[%clk 0:01:06.4]} 28... d4 {[%clk 0:00:48.9]} 29.
Ne4 {[%clk 0:01:03.2]} 29... dxe3 {[%clk 0:00:45.6]} 30. Qxe3 {[%clk 0:01:01.3]}
30... e5 {[%clk 0:00:44.9]} 31. f4 {[%clk 0:00:34.7]} 31... f5 {[%clk 0:00:41]}
32. Nd2 {[%clk 0:00:27.4]} 32... e4 {[%clk 0:00:39]} 33. Bh4 {[%clk 0:00:23.8]}
33... Be6 {[%clk 0:00:39.1]} 34. Bxd8 {[%clk 0:00:23.4]} 34... Rxd8 {[%clk
0:00:39]} 35. Bd1 {[%clk 0:00:15.7]} 35... Qf7 {[%clk 0:00:37]} 36. Bb3 {[%clk
0:00:13.7]} 36... Rd3 {[%clk 0:00:35.9]} 37. Bxe6 {[%clk 0:00:13.4]} 37... Qxe6
{[%clk 0:00:36.8]} 38. Qe1 {[%clk 0:00:13.2]} 38... Nf6 {[%clk 0:00:35.9]} 39.
Nf1 {[%clk 0:00:12.3]} 39... Nd5 {[%clk 0:00:32.6]} 40. a4 {[%clk 0:00:11.2]}
40... Nxf4 {[%clk 0:00:31]} 41. axb5 {[%clk 0:00:11.5]} 41... axb5 {[%clk
0:00:30.9]} 42. Ra8+ {[%clk 0:00:11.2]} 42... Kh7 {[%clk 0:00:30.7]} 43. Ra6
{[%clk 0:00:10]} 43... Qg6 {[%clk 0:00:29.6]} 44. Rc2 {[%clk 0:00:07.5]} 44...
Nxh3+ {[%clk 0:00:28.3]} 45. Kh1 {[%clk 0:00:05.1]} 45... Nf4 {[%clk 0:00:28]}
46. Qh4 {[%clk 0:00:03.9]} 46... Rd1 {[%clk 0:00:25]} 47. Qxf4 {[%clk
0:00:03.3]} 47... Nd4 {[%clk 0:00:22.6]} 48. Rxg6 {[%clk 0:00:02.5]} 48... Nxc2
{[%clk 0:00:20.4]} 49. Qxf5 {[%clk 0:00:02.1]} 49... Ne3 {[%clk 0:00:16.6]} 50.
Qxe4 {[%clk 0:00:02.4]} 50... Rxf1+ {[%clk 0:00:15.6]} 51. Kh2 {[%clk 0:00:03]}
51... Nf5 {[%clk 0:00:13]} 52. Re6 {[%clk 0:00:03.1]} 52... Kg8 {[%clk
0:00:12.2]} 53. Re8+ {[%clk 0:00:03.3]} 53... Kh7 {[%clk 0:00:12.5]} 54. Rf8
{[%clk 0:00:03.4]} 54... Kg6 {[%clk 0:00:12.3]} 55. c6 {[%clk 0:00:03.6]} 55...
Kg5 {[%clk 0:00:12.6]} 56. Rxf5+ {[%clk 0:00:03.5]} 56... Rxf5 {[%clk
0:00:11.8]} 57. Qxf5+ {[%clk 0:00:04.1]} 57... Kxf5 {[%clk 0:00:12.6]} 58. c7
{[%clk 0:00:05]} 58... Ke4 {[%clk 0:00:13.1]} 59. c8=Q {[%clk 0:00:05.5]} 59...
Kd3 {[%clk 0:00:14]} 60. Qb7 {[%clk 0:00:05.8]} 1-0

[Event "Early-Titled-Tuesday-Blitz-October-10-2023"]
[Site "Chess.com"]
[Date "2023.10.10"]
[Round "9"]
[White "kacprekt"]
[Black "SirStrateg"]
[Result "1/2-1/2"]
[WhiteElo "2492"]
[BlackElo "2584"]
[TimeControl "180+1"]
[EndTime "9:44:58 PDT"]
[Termination "Game drawn by repetition"]

1. e4 {[%clk 0:03:00.7]} 1... Nf6 {[%clk 0:02:59.6]} 2. Nc3 {[%clk 0:02:59.5]}
2... d6 {[%clk 0:02:58.5]} 3. Nge2 {[%clk 0:02:56.9]} 3... e5 {[%clk 0:02:57.1]}
4. h3 {[%clk 0:02:55]} 4... Be7 {[%clk 0:02:57.5]} 5. g4 {[%clk 0:02:55.2]} 5...
Nc6 {[%clk 0:02:52.3]} 6. Bg2 {[%clk 0:02:55.3]} 6... h5 {[%clk 0:02:51.4]} 7.
g5 {[%clk 0:02:54.9]} 7... Nd7 {[%clk 0:02:51.6]} 8. h4 {[%clk 0:02:50.2]} 8...
Nc5 {[%clk 0:02:50.6]} 9. d4 {[%clk 0:02:46.4]} 9... exd4 {[%clk 0:02:49.2]} 10.
Nxd4 {[%clk 0:02:46.9]} 10... Bg4 {[%clk 0:02:44]} 11. f3 {[%clk 0:02:46]} 11...
Bd7 {[%clk 0:02:37.9]} 12. Be3 {[%clk 0:02:44.6]} 12... Nxd4 {[%clk 0:02:35.3]}
13. Qxd4 {[%clk 0:02:38]} 13... Ne6 {[%clk 0:02:35.8]} 14. Qd2 {[%clk
0:02:37.5]} 14... c6 {[%clk 0:02:35.2]} 15. f4 {[%clk 0:02:35.4]} 15... Qa5
{[%clk 0:02:34.2]} 16. O-O-O {[%clk 0:02:24.3]} 16... Nc5 {[%clk 0:02:27.7]} 17.
Kb1 {[%clk 0:02:19.8]} 17... Bg4 {[%clk 0:02:26.7]} 18. Rde1 {[%clk 0:02:12.1]}
18... Na4 {[%clk 0:02:20.7]} 19. Nxa4 {[%clk 0:02:07.7]} 19... Qxa4 {[%clk
0:02:21.6]} 20. Qd4 {[%clk 0:02:02.3]} 20... Qxd4 {[%clk 0:02:19.9]} 21. Bxd4
{[%clk 0:02:02.7]} 21... O-O {[%clk 0:02:19.4]} 22. f5 {[%clk 0:01:57]} 22...
Rfe8 {[%clk 0:02:15.3]} 23. Re3 {[%clk 0:01:34.5]} 23... Bf8 {[%clk 0:02:13.4]}
24. Rhe1 {[%clk 0:01:33.9]} 24... g6 {[%clk 0:02:09.5]} 25. fxg6 {[%clk
0:01:29.3]} 25... fxg6 {[%clk 0:02:09.7]} 26. e5 {[%clk 0:01:28.7]} 26... Re6
{[%clk 0:01:54]} 27. exd6 {[%clk 0:01:23.2]} 27... Rxe3 {[%clk 0:01:51.7]} 28.
Rxe3 {[%clk 0:01:20.6]} 28... Bxd6 {[%clk 0:01:52.4]} 29. Bf1 {[%clk 0:01:20.1]}
29... b5 {[%clk 0:01:15.7]} 30. a4 {[%clk 0:01:19.8]} 30... a6 {[%clk 0:01:16]}
31. Bg2 {[%clk 0:01:18.7]} 31... Rc8 {[%clk 0:01:12.9]} 32. Rc3 {[%clk
0:01:08.1]} 32... c5 {[%clk 0:01:10.4]} 33. Bd5+ {[%clk 0:00:57.3]} 33... Kf8
{[%clk 0:01:06]} 34. Bf6 {[%clk 0:00:54.2]} 34... c4 {[%clk 0:00:59.6]} 35. Re3
{[%clk 0:00:48.6]} 35... Re8 {[%clk 0:00:52.3]} 36. Bg7+ {[%clk 0:00:47]} 36...
Kxg7 {[%clk 0:00:51.6]} 37. Rxe8 {[%clk 0:00:47.2]} 37... bxa4 {[%clk
0:00:51.4]} 38. Ra8 {[%clk 0:00:44.6]} 38... Bg3 {[%clk 0:00:44.5]} 39. Ra7+
{[%clk 0:00:43.7]} 39... Kf8 {[%clk 0:00:44]} 40. Rxa6 {[%clk 0:00:35.3]} 40...
Bf5 {[%clk 0:00:44.4]} 41. Rf6+ {[%clk 0:00:30.7]} 41... Ke7 {[%clk 0:00:41.7]}
42. Bf7 {[%clk 0:00:28.9]} 42... Bxh4 {[%clk 0:00:41.9]} 43. Bxg6 {[%clk
0:00:28.6]} 43... Be6 {[%clk 0:00:40]} 44. Bxh5 {[%clk 0:00:23.9]} 44... Bxg5
{[%clk 0:00:40.4]} 45. Rf3 {[%clk 0:00:23.1]} 45... Bf6 {[%clk 0:00:33.4]} 46.
Re3 {[%clk 0:00:21.1]} 46... Kd6 {[%clk 0:00:32.4]} 47. Be2 {[%clk 0:00:20.5]}
47... c3 {[%clk 0:00:22.5]} 48. bxc3 {[%clk 0:00:17.1]} 48... a3 {[%clk
0:00:23.1]} 49. c4 {[%clk 0:00:15.1]} 49... Bb2 {[%clk 0:00:21]} 50. Ka2 {[%clk
0:00:14.4]} 50... Bd7 {[%clk 0:00:19.2]} 51. Kb3 {[%clk 0:00:14.5]} 51... Kc5
{[%clk 0:00:19.8]} 52. Rd3 {[%clk 0:00:11.8]} 52... Bc6 {[%clk 0:00:19.4]} 53.
Bf3 {[%clk 0:00:10.8]} 53... Ba4+ {[%clk 0:00:15.1]} 54. Kxa4 {[%clk 0:00:04.9]}
54... a2 {[%clk 0:00:15.4]} 55. Rd1 {[%clk 0:00:03.8]} 55... a1=Q+ {[%clk
0:00:14.4]} 56. Rxa1 {[%clk 0:00:04]} 56... Bxa1 {[%clk 0:00:15.2]} 57. Kb3
{[%clk 0:00:04.4]} 57... Bd4 {[%clk 0:00:15.4]} 58. c3 {[%clk 0:00:04.5]} 58...
Be5 {[%clk 0:00:15.7]} 59. Bd5 {[%clk 0:00:04.4]} 59... Bc7 {[%clk 0:00:16.3]}
60. Kc2 {[%clk 0:00:05]} 60... Bb8 {[%clk 0:00:16.9]} 61. Kd3 {[%clk 0:00:05.9]}
61... Bc7 {[%clk 0:00:17.7]} 62. Kc2 {[%clk 0:00:04.9]} 62... Bb8 {[%clk
0:00:18.6]} 63. Kd3 {[%clk 0:00:05.6]} 63... Bc7 {[%clk 0:00:19.3]} 64. Kc2
{[%clk 0:00:06.5]} 1/2-1/2